bitfinex/quotes_SOLUSD_20251226
["timestamp","ask_amount","ask_price","bid_price","bid_amount"]
[1766760462989,10.43767296,123.61,123.53,6.98519883]
[1766760463167,0.68,123.59,123.55,8.09387855]
[1766760463361,6.98519883,123.59,123.55,8.09387855]
[1766760463566,6.98519883,123.59,123.54,8.0942827]
[1766760463978,10.25682412,123.58,123.54,8.0942827]
[1766760464190,10.97682412,123.58,123.54,8.0942827]
[1766760464882,10.97682412,123.58,123.54,8.8142827]
[1766760465080,10.25682412,123.6,123.55,0.72]
[1766760465261,10.97682412,123.6,123.55,0.72]
[1766760465590,10.25682412,123.59,123.55,0.72]
[1766760466274,0.72,123.6,123.55,8.81333911]
[1766760466473,10.25682412,123.59,123.55,8.81333911]
[1766760467493,0.72,123.6,123.55,8.81333911]
[1766760467682,10.97682412,123.6,123.55,8.81333911]
[1766760467882,14.78,123.65,123.57,0.68]
[1766760468095,10.25682412,123.61,123.57,0.68]
[1766760468393,10.92682412,123.62,123.57,0.68]
[1766760469083,10.25682412,123.61,123.57,8.09242488]
[1766760469268,0.67,123.6,123.55,0.68]
[1766760469589,10.92682412,123.6,123.55,8.77371583]
[1766760469784,10.92682412,123.59,123.55,8.77371583]
[1766760470089,0.67,123.57,123.54,22.87447333]
[1766760470490,10.25682412,123.58,123.54,22.87447333]
[1766760471676,10.25682412,123.58,123.54,8.77447333]
[1766760472292,10.25682412,123.6,123.55,10.25682412]
[1766760472478,8.08745743,123.65,123.55,10.25682412]
[1766760472479,0.67,123.72,123.6,0.68]
[1766760472683,10.92682412,123.65,123.6,0.68]
[1766760472886,10.92682412,123.64,123.6,0.68]
[1766760473192,10.92682412,123.64,123.59,8.09126952]
[1766760473376,10.25682412,123.63,123.59,8.09126952]
[1766760473570,0.67,123.63,123.59,8.09126952]
[1766760473769,0.67,123.63,123.59,18.34809364]
[1766760473986,0.67,123.63,123.59,19.02809364]
[1766760474174,10.25682412,123.61,123.58,14.78]
[1766760474491,10.92682412,123.61,123.56,18.34960386]
[1766760474680,10.92682412,123.61,123.56,19.02960386]
[1766760475393,10.25682412,123.62,123.57,10.93682412]
[1766760475598,10.92682412,123.62,123.57,10.93682412]
[1766760475781,0.67,123.61,123.57,10.93682412]
[1766760476594,0.67,123.59,123.55,33.13047587]
[1766760476972,0.67,123.59,123.55,33.81047587]
[1766760477298,0.67,123.59,123.55,23.55365175]
[1766760477595,0.67,123.59,123.55,33.81047587]
[1766760477893,10.92682412,123.59,123.55,33.81047587]
[1766760478296,0.67,123.59,123.55,33.81047587]
[1766760478486,11.10767296,123.64,123.58,10.93682412]
[1766760478725,10.92682412,123.63,123.58,10.93682412]
[1766760479479,10.25682412,123.65,123.6,10.25682412]
[1766760479679,0.67,123.66,123.62,10.25682412]
[1766760479994,10.25682412,123.67,123.63,10.25682412]
[1766760480174,0.67,123.73,123.64,10.25682412]
[1766760480380,0.67,123.7,123.65,10.93682412]
[1766760480579,10.25682412,123.69,123.63,15.58886516]
[1766760480881,10.92682412,123.68,123.63,25.71682412]
[1766760481084,0.67,123.68,123.63,25.71682412]
[1766760481306,11.10767296,123.71,123.65,10.93682412]
[1766760481471,10.92682412,123.7,123.65,10.93682412]
[1766760481680,10.92682412,123.67,123.63,14.78]
[1766760482001,10.43767296,123.71,123.6,44.24467412]
[1766760482002,10.92682412,123.65,123.6,44.24467412]
[1766760482290,14.78,123.69,123.6,15.46]
[1766760482291,10.92682412,123.64,123.6,15.46]
[1766760482473,10.92682412,123.64,123.6,23.55048569]
[1766760482681,0.67,123.64,123.6,33.80730981]
[1766760483275,0.67,123.68,123.61,10.93682412]
[1766760483498,10.25682412,123.65,123.56,20.23235457]
[1766760483709,10.92682412,123.6,123.56,22.87261898]
[1766760484076,10.92682412,123.59,123.56,14.78]
[1766760484903,0.67,123.59,123.56,14.78]
[1766760485405,10.92682412,123.6,123.55,0.68]
[1766760485581,10.92682412,123.58,123.53,25.03682412]
[1766760485920,22.84866259,123.63,123.53,25.03682412]
[1766760485921,10.25682412,123.59,123.55,18.35033034]
[1766760486290,10.92682412,123.6,123.55,18.35033034]
[1766760486502,0.67,123.6,123.55,18.35033034]
[1766760486812,10.92682412,123.6,123.55,18.35033034]
[1766760487211,0.67,123.6,123.55,19.03033034]
[1766760487380,10.92682412,123.62,123.57,19.02893184]
[1766760489187,10.92682412,123.62,123.57,8.77210772]
[1766760489396,10.25682412,123.61,123.57,8.77210772]
[1766760489598,10.43767296,123.65,123.57,18.34893184]
[1766760489915,10.25682412,123.61,123.57,8.77210772]
[1766760490120,0.67,123.64,123.59,10.25682412]
[1766760490287,10.25682412,123.63,123.58,0.68]
[1766760490488,10.92682412,123.63,123.58,10.93682412]
[1766760490802,0.67,123.63,123.58,10.93682412]
[1766760491001,0.67,123.63,123.59,0.68]
[1766760491211,10.92682412,123.63,123.59,0.68]
[1766760494305,0.67,123.62,123.58,10.93682412]
[1766760494924,10.25682412,123.63,123.59,10.25682412]
[1766760495215,0.69,123.64,123.59,10.25682412]
[1766760495425,10.94682412,123.63,123.59,10.25682412]
[1766760495628,10.94682412,123.62,123.57,8.0925483]
[1766760495784,10.94682412,123.62,123.57,10.97682412]
[1766760495990,10.94682412,123.62,123.56,61.5]
[1766760495991,0.69,123.62,123.58,19.06869817]
[1766760496187,10.94682412,123.63,123.58,25.75682412]
[1766760496395,10.94682412,123.62,123.58,23.59169051]
[1766760496919,10.94682412,123.63,123.58,10.25682412]
[1766760497220,0.69,123.62,123.57,8.812306]
[1766760497416,10.94682412,123.62,123.57,19.06913012]
[1766760497634,10.25682412,123.62,123.57,8.812306]
[1766760497799,0.69,123.61,123.57,19.06913012]
[1766760498525,28.78120229,123.66,123.57,18.34913012]
[1766760498733,10.25682412,123.64,123.59,10.25682412]
[1766760499024,10.25682412,123.64,123.6,0.72]
[1766760499205,10.94682412,123.64,123.6,0.72]
[1766760500599,10.94682412,123.64,123.59,18.34795486]
[1766760500924,0.69,123.64,123.59,10.97682412]
[1766760501120,0.69,123.64,123.6,18.34730383]
[1766760501303,0.69,123.64,123.6,8.09047971]
[1766760501506,10.94682412,123.64,123.6,8.09047971]
[1766760502329,0.69,123.68,123.63,10.97682412]
[1766760502528,0.69,123.68,123.6,28.31701692]
[1766760502529,0.69,123.7,123.61,16.30899603]
[1766760502705,10.25682412,123.66,123.61,25.75682412]
[1766760503515,0.69,123.67,123.61,25.75682412]
[1766760503710,0.69,123.67,123.63,10.25682412]
[1766760503925,0.69,123.67,123.61,14.78]
[1766760504112,0.69,123.66,123.61,25.75682412]
[1766760504314,0.69,123.66,123.62,19.06613005]
[1766760508026,10.25682412,123.68,123.63,19.06540524]
[1766760508224,10.94682412,123.68,123.63,19.06540524]
[1766760508424,0.69,123.67,123.63,19.06540524]
[1766760509135,0.69,123.67,123.63,8.80858112]
[1766760509343,0.69,123.67,123.63,19.06540524]
[1766760509519,10.25682412,123.69,123.64,8.80798444]
[1766760509731,10.94682412,123.69,123.64,8.80798444]
[1766760509925,10.94682412,123.69,123.64,19.06480856]
[1766760510315,0.69,123.68,123.64,8.80798444]
[1766760510522,0.69,123.68,123.64,19.06480856]
[1766760511208,0.69,123.7,123.64,19.06480856]
[1766760511409,10.94682412,123.7,123.64,43.06797796]
[1766760511622,36.14586582,123.72,123.64,43.06797796]
[1766760511623,0.69,123.71,123.64,14.76]
[1766760511924,10.94682412,123.67,123.64,14.76]
[1766760512109,0.69,123.67,123.64,22.8477755]
[1766760512305,10.25682412,123.69,123.64,19.06459962]
[1766760512639,10.94682412,123.68,123.64,8.8077755]
[1766760513207,10.94682412,123.68,123.64,8.0877755]
[1766760513421,0.69,123.67,123.64,8.0877755]
[1766760513630,0.69,123.66,123.62,22.8488536]
[1766760514137,0.69,123.63,123.59,8.09101433]
[1766760514340,0.69,123.63,123.58,15.48]
[1766760514634,10.25682412,123.61,123.58,15.48]
[1766760514936,10.94682412,123.62,123.58,23.57185839]
[1766760515338,10.94682412,123.62,123.58,15.48]
[1766760515639,0.69,123.62,123.58,23.57187825]
[1766760516215,0.69,123.69,123.6,10.97682412]
[1766760516431,10.94682412,123.65,123.6,10.97682412]
[1766760517125,0.69,123.65,123.61,0.72]
[1766760517439,10.25682412,123.64,123.6,8.09037017]
[1766760517744,10.94682412,123.64,123.6,8.09037017]
[1766760518131,10.25682412,123.62,123.59,0.72]
[1766760518646,10.94682412,123.61,123.56,0.72]
[1766760518946,10.94682412,123.58,123.53,15.48]
[1766760519160,10.25682412,123.57,123.53,15.48]
[1766760519438,10.94682412,123.56,123.51,0.72]
[1766760519646,10.94682412,123.54,123.49,8.81754733]
[1766760519812,10.25682412,123.55,123.5,23.57693259]
[1766760520018,10.94682412,123.56,123.52,0.72]
[1766760520219,10.94682412,123.56,123.49,20.24362648]
[1766760520220,10.25682412,123.53,123.49,0.72]
[1766760520445,10.94682412,123.5,123.47,0.1]
[1766760520648,0.69,123.5,123.47,0.1]
[1766760520950,10.94682412,123.5,123.47,0.1]
[1766760521914,10.25682412,123.48,123.47,0.1]
[1766760522116,0.69,123.48,123.47,0.1]
[1766760522326,0.69,123.48,123.47,0.06465336]
[1766760522542,10.94682412,123.5,123.47,0.06465336]
[1766760523848,0.69,123.5,123.47,0.06465336]
[1766760524237,10.43767296,123.53,123.47,0.76465336]
[1766760524238,0.69,123.52,123.47,0.76465336]
[1766760524450,10.25682412,123.51,123.47,0.76465336]
[1766760524743,10.94682412,123.5,123.47,0.06465336]
[1766760525130,0.69,123.5,123.47,0.06465336]
[1766760525339,10.43767296,123.53,123.47,0.06465336]
[1766760525641,10.43767296,123.53,123.47,0.76465336]
[1766760525642,0.69,123.52,123.47,0.76465336]
[1766760525848,10.25682412,123.51,123.47,0.76465336]
[1766760526057,7.00945326,123.51,123.47,0.76465336]
[1766760526552,6.31945326,123.51,123.47,0.76465336]
[1766760526729,10.43767296,123.53,123.47,0.76465336]
[1766760526730,6.31945326,123.52,123.47,7.08410662]
[1766760526928,7.00945326,123.53,123.47,7.08410662]
[1766760527130,7.00945326,123.53,123.48,0.7]
[1766760527348,7.00945326,123.53,123.48,7.01945326]
[1766760527537,0.69,123.53,123.48,7.01945326]
[1766760527850,7.00945326,123.53,123.48,7.01945326]
[1766760528047,7.00945326,123.53,123.47,0.06465336]
[1766760528048,0.69,123.53,123.47,0.06465336]
[1766760528254,0.69,123.48,123.47,0.00465336]
[1766760528549,7.00945326,123.48,123.47,0.00465336]
[1766760528946,0.69,123.48,123.47,0.00465336]
[1766760529148,7.00945326,123.48,123.47,0.00465336]
[1766760529451,0.69,123.47,123.43,0.7]
[1766760529746,6.31945326,123.46,123.43,0.7]
[1766760530326,7.00945326,123.47,123.43,0.7]
[1766760530834,0.69,123.47,123.43,0.7]
[1766760531145,11.12767296,123.49,123.43,8.80159764]
[1766760531348,10.43767296,123.48,123.39,20.2603833]
[1766760531533,10.43767296,123.48,123.39,8.80438447]
[1766760531534,7.00945326,123.44,123.39,8.80438447]
[1766760531735,6.31945326,123.42,123.37,15.12469841]
[1766760531948,7.00945326,123.43,123.37,15.12469841]
[1766760532140,6.31945326,123.43,123.37,8.80558545]
[1766760532341,7.00945326,123.42,123.37,15.12503871]
[1766760532556,7.00945326,123.42,123.37,8.80558545]
[1766760532557,0.69,123.42,123.37,8.80558545]
[1766760532856,0.69,123.42,123.38,6.31945326]
[1766760533261,0.69,123.42,123.37,0.7]
[1766760533463,0.69,123.41,123.36,14.78]
[1766760533786,0.69,123.42,123.36,0.7]
[1766760533925,25.21767296,123.43,123.36,6.31945326]
[1766760533926,7.00945326,123.41,123.36,6.31945326]
[1766760534130,25.21767296,123.43,123.35,8.80681436]
[1766760534131,10.43767296,123.43,123.35,8.80681436]
[1766760534350,0.69,123.39,123.34,0.7]
[1766760534552,0.69,123.42,123.36,6.31945326]
[1766760534855,0.69,123.39,123.34,8.10760369]
[1766760535092,0.69,123.38,123.33,6.31945326]
[1766760535258,0.69,123.38,123.3,0.91103]
[1766760535259,0.69,123.42,123.3,0.91103]
[1766760535465,0.69,123.42,123.17,32.21]
[1766760535466,0.69,123.42,123.26,8.11289596]
[1766760535467,0.69,123.36,123.26,8.11289596]
[1766760535768,8.10693215,123.36,123.19,28.41139702]
[1766760535956,6.31945326,123.33,123.22,14.78]
[1766760536133,0.69,123.32,123.22,14.78]
[1766760536328,0.69,123.32,123.23,0.7]
[1766760536534,0.69,123.3,123.23,0.8114907]
[1766760536750,16.75712622,123.3,123.23,0.8114907]
[1766760536946,7.00945326,123.26,123.19,29.11139702]
[1766760537145,0.69,123.29,123.19,29.11139702]
[1766760537355,0.69,123.29,123.19,8.817542]
[1766760537529,10.43767296,123.3,123.19,8.817542]
[1766760537731,7.00945326,123.26,123.19,8.817542]
[1766760537951,7.00945326,123.24,123.19,0.7]
[1766760538259,6.31945326,123.23,123.16,10.43767296]
[1766760538462,0.69,123.24,123.18,8.81811485]
[1766760538761,0.69,123.29,123.2,0.7]
[1766760538976,8.11035999,123.3,123.18,8.11812955]
[1766760538977,7.00945326,123.24,123.18,8.11812955]
[1766760539178,0.69,123.26,123.16,0.7]
[1766760539378,10.43767296,123.27,123.19,8.11737011]
[1766760539582,0.69,123.24,123.17,0.7]
[1766760539885,10.43767296,123.26,123.18,0.7]
[1766760540053,10.43767296,123.26,123.17,0.7]
[1766760540054,0.69,123.25,123.17,0.7]
[1766760540254,0.69,123.24,123.16,28.41831763]
[1766760540473,0.69,123.24,123.17,0.7]
[1766760540679,0.69,123.27,123.21,0.7]
[1766760540887,0.69,123.21,123.15,14.8]
[1766760541086,6.31945326,123.21,123.17,0.7]
[1766760541254,0.69,123.25,123.16,0.7]
[1766760541657,0.69,123.24,123.16,0.7]
[1766760541987,0.69,123.22,123.14,15.14013768]
[1766760542288,0.69,123.22,123.11,0.7]
[1766760542790,10.43767296,123.2,123.08,22.92479688]
[1766760542957,10.43767296,123.2,123.06,0.81261173]
[1766760542958,0.69,123.17,123.07,8.12540317]
[1766760543286,0.69,123.13,123.03,15.5]
[1766760543460,0.69,123.13,123.02,0.81287595]
[1766760543461,6.31945326,123.07,123.02,0.81287595]
[1766760543771,6.31945326,123.07,123.0,10.7]
[1766760543772,0.69,123.05,123.0,10.0]
[1766760544089,8.12392765,123.1,123.01,4.22603758]
[1766760544378,11.12767296,123.11,123.02,0.7]
[1766760544582,11.12767296,123.11,123.04,0.7]
[1766760544785,17.44712622,123.11,123.04,0.7]
[1766760544966,6.31945326,123.21,123.04,0.7]
[1766760544967,8.1199732,123.16,123.04,0.7]
[1766760545167,20.2936914,123.2,123.04,0.7]
[1766760545479,0.69,123.2,123.07,0.7]
[1766760545678,0.69,123.2,123.1,0.7]
[1766760545861,6.31945326,123.17,123.11,0.7]
[1766760546061,6.31945326,123.17,123.04,15.0]
[1766760546062,0.69,123.11,123.05,14.8]
[1766760546265,0.69,123.11,123.02,0.7]
[1766760546473,0.69,123.11,123.05,0.7]
[1766760546679,0.69,123.11,123.07,6.31945326]
[1766760546886,6.31945326,123.12,123.05,0.7]
[1766760546887,0.69,123.1,123.05,8.12668184]
[1766760547200,6.31945326,123.06,123.0,10.0]
[1766760547497,14.8,123.11,123.0,10.0]
[1766760547498,0.69,123.07,123.0,10.0]
[1766760547790,0.69,123.04,123.0,10.0]
[1766760547993,10.43767296,123.08,123.0,16.31945326]
[1766760548170,0.69,123.06,123.0,10.0]
[1766760548501,0.69,123.03,123.0,10.0]
[1766760548668,6.31945326,123.04,123.0,4.32]
[1766760548863,10.43767296,123.05,123.0,4.32]
[1766760549068,6.31945326,123.02,123.0,4.32]
[1766760549366,10.43767296,123.07,123.01,0.7]
[1766760549564,0.59,123.06,123.0,4.32]
[1766760549765,11.02767296,123.06,123.0,4.32]
[1766760549989,11.02767296,123.08,123.01,0.7]
[1766760550292,0.69,123.11,122.89,15.0]
[1766760550590,6.31945326,123.03,122.89,0.81373586]
[1766760550788,6.31945326,123.03,122.92,6.31945326]
[1766760550992,6.31945326,123.03,122.89,14.82]
[1766760550993,0.69,123.03,122.93,8.13462513]
[1766760551294,0.69,123.03,122.94,10.43767296]
[1766760551667,0.69,123.06,122.96,10.43767296]
[1766760551868,4.24260818,123.09,123.04,6.31945326]
[1766760552073,6.31945326,123.11,123.05,6.31945326]
[1766760552268,0.69,123.12,123.01,0.7]
[1766760552492,0.69,123.06,122.99,14.82]
[1766760552793,0.69,123.05,122.99,0.7]
[1766760553297,6.31945326,123.05,123.01,0.7]
[1766760553474,29.2617069,123.12,122.99,0.7]
[1766760553682,0.69,123.09,123.01,0.7]
[1766760553997,0.69,123.09,123.02,6.31945326]
[1766760554176,6.31945326,123.06,123.03,0.68]
[1766760554373,6.31945326,123.04,123.0,0.68]
[1766760554585,0.72,123.07,123.0,0.68]
[1766760554784,6.31945326,123.04,123.0,0.68]
[1766760555086,6.31945326,123.05,123.0,0.68]
[1766760555271,10.43767296,123.09,123.02,0.68]
[1766760555474,6.31945326,123.06,123.02,0.68]
[1766760555671,0.72,123.08,123.02,6.31945326]
[1766760555889,0.72,123.11,123.05,0.68]
[1766760556194,4.23882035,123.2,123.04,14.82]
[1766760556397,6.31945326,123.19,123.08,0.68]
[1766760556589,0.72,123.21,123.14,6.99945326]
[1766760556590,8.8363873,123.21,123.14,6.99945326]
[1766760556779,0.72,123.17,123.1,0.68]
[1766760556966,14.43584056,123.21,123.1,0.68]
[1766760557173,0.72,123.17,123.1,0.68]
[1766760557484,0.72,123.14,123.05,0.68]
[1766760557686,0.72,123.12,123.05,6.99945326]
[1766760557883,6.31945326,123.09,123.05,0.68]
[1766760558398,6.31945326,123.09,123.02,37.62320232]
[1766760558399,7.03945326,123.06,123.02,4.23679681]
[1766760558603,6.31945326,123.03,123.02,4.23679681]
[1766760558900,10.43767296,123.08,122.97,0.68]
[1766760558901,0.72,123.05,122.97,0.68]
[1766760559070,6.31945326,123.02,122.97,0.68]
[1766760559275,6.31945326,123.02,122.94,0.68]
[1766760559276,6.31945326,123.0,122.94,0.68]
[1766760559500,0.72,123.02,122.92,0.68]
[1766760559501,0.72,122.99,122.92,0.68]
[1766760559800,0.72,122.99,122.92,6.99945326]
[1766760559980,6.31945326,122.97,122.92,15.13469413]
[1766760560294,6.31945326,122.98,122.93,6.99945326]
[1766760560496,11.15767296,123.02,122.95,0.68]
[1766760560797,0.72,122.97,122.91,6.99945326]
[1766760560987,6.31945326,122.96,122.91,6.99945326]
[1766760561296,10.43767296,123.0,122.91,0.68]
[1766760561297,0.72,122.98,122.91,0.68]
[1766760561504,0.88331628,122.95,122.91,0.68]
[1766760561677,0.72,122.98,122.91,15.13546837]
[1766760561879,10.43767296,123.02,122.93,6.99945326]
[1766760562203,0.72,123.04,122.92,0.68]
[1766760562496,0.72,123.04,122.91,28.47610135]
[1766760562497,0.72,123.02,122.94,0.68]
[1766760562698,6.31945326,123.02,122.97,6.31945326]
[1766760562880,6.31945326,123.01,122.97,0.68]
[1766760563080,0.72,123.03,122.97,0.68]
[1766760563283,25.97767296,123.06,122.94,0.68]
[1766760563480,25.97767296,123.06,122.99,0.68]
[1766760563481,15.54,123.06,122.99,0.68]
[1766760563697,15.54,123.06,122.95,0.68]
[1766760563698,6.31945326,123.0,122.95,0.68]
[1766760563869,6.31945326,122.97,122.92,0.68]
[1766760564077,16.75712622,123.03,122.89,0.1]
[1766760564078,6.31945326,122.93,122.89,0.78]
[1766760564270,6.31945326,122.96,122.91,8.81551027]
[1766760564476,6.31945326,122.96,122.91,0.68]
[1766760564705,0.72,122.98,122.91,0.68]
[1766760565005,0.72,123.01,122.93,8.1347075]
[1766760565304,0.72,123.03,122.96,0.68]
[1766760565597,6.31945326,122.97,122.93,0.68]
[1766760565795,6.31945326,122.97,122.91,15.1353826]
[1766760566008,6.31945326,122.96,122.91,0.68]
[1766760566305,0.72,122.99,122.93,0.68]
[1766760566485,6.31945326,122.99,122.94,6.99945326]
[1766760566682,6.31945326,122.99,122.9,14.84]
[1766760566683,14.84,123.06,122.96,6.31945326]
[1766760567008,6.31945326,123.02,122.97,6.31945326]
[1766760567302,6.31945326,123.04,122.98,6.31945326]
[1766760567596,6.31945326,123.04,122.95,14.84]
[1766760567597,0.72,123.05,122.99,0.68]
[1766760567775,6.31945326,123.01,122.95,0.68]
[1766760567974,6.31945326,122.99,122.95,0.68]
[1766760568174,25.27767296,123.06,122.97,0.68]
[1766760568376,25.27767296,123.06,122.9,40.68347199]
[1766760568377,0.72,123.05,122.94,15.13336878]
[1766760568595,0.72,123.02,122.94,6.99945326]
[1766760568799,0.72,123.02,122.95,6.99945326]
[1766760569021,10.43767296,123.03,122.93,8.81454051]
[1766760569022,0.72,123.0,122.93,8.81454051]
[1766760569220,6.31945326,122.98,122.93,15.52]
[1766760569410,6.31945326,122.98,122.9,20.34129411]
[1766760569411,0.72,122.97,122.9,8.13658522]
[1766760569619,6.31945326,122.96,122.91,0.68]
[1766760569805,6.31945326,122.95,122.91,0.68]
[1766760570126,6.31945326,122.94,122.89,8.91722221]
[1766760570297,6.31945326,122.97,122.92,0.68]
[1766760570496,8.85009056,123.0,122.92,6.31945326]
[1766760570497,6.31945326,122.98,122.92,6.31945326]
[1766760570698,0.72,123.0,122.93,0.68]
[1766760570927,11.15767296,123.03,122.95,0.68]
[1766760571147,6.31945326,122.97,122.93,0.68]
[1766760571348,10.43767296,123.0,122.9,8.81657019]
[1766760571499,0.72,122.97,122.9,8.81657019]
[1766760571697,6.31945326,122.96,122.91,6.31945326]
[1766760572027,6.31945326,122.95,122.91,0.68]
[1766760572209,0.72,122.97,122.91,0.68]
[1766760572400,6.31945326,122.94,122.91,0.68]
[1766760572602,0.72,122.97,122.91,0.68]
[1766760572900,6.31945326,122.95,122.91,0.68]
[1766760573102,6.31945326,122.94,122.91,0.68]
[1766760573323,0.72,122.94,122.89,0.1]
[1766760573506,6.31945326,122.9,122.89,0.1]
[1766760574102,0.72,122.96,122.89,0.78]
[1766760574310,35.16569129,123.0,122.9,0.68]
[1766760574311,6.31945326,122.94,122.9,0.68]
[1766760574626,0.72,122.96,122.89,0.78]
[1766760574826,6.31945326,122.96,122.91,0.68]
[1766760575234,14.84,123.0,122.93,0.68]
[1766760575397,8.12959864,123.01,122.89,0.1]
[1766760575398,0.72,123.01,122.94,0.68]
[1766760575729,6.31945326,123.01,122.97,8.13206473]
[1766760576030,6.31945326,123.04,122.99,0.68]
[1766760576324,6.31945326,123.06,122.99,0.68]
[1766760576551,8.12281699,123.11,122.99,0.68]
[1766760576552,10.43767296,123.08,122.99,0.68]
[1766760576723,0.72,123.07,122.99,6.31945326]
[1766760576925,0.72,123.07,123.0,0.68]
[1766760577143,8.12281699,123.11,123.01,6.31945326]
[1766760577312,8.12281699,123.11,122.94,16.75712622]
[1766760577313,0.72,123.1,122.94,0.68]
[1766760577517,0.72,123.1,122.93,14.84]
[1766760577518,11.15767296,123.06,122.98,0.68]
[1766760577716,0.72,123.05,122.98,0.68]
[1766760577945,6.31945326,123.02,122.98,0.68]
[1766760578245,6.31945326,123.01,122.96,14.84]
[1766760578453,6.31945326,122.97,122.91,6.31945326]
[1766760578628,6.31945326,122.97,122.92,0.68]
[1766760578827,6.31945326,122.99,122.94,0.68]
[1766760579033,0.72,123.01,122.94,0.68]
[1766760579232,6.31945326,122.98,122.94,0.68]
[1766760579445,16.75712622,123.03,122.9,28.47843775]
[1766760579446,6.31945326,122.96,122.9,8.1366965]
[1766760579744,0.72,122.96,122.9,0.68]
[1766760579928,6.31945326,122.93,122.9,0.68]
[1766760580128,0.72,122.96,122.9,0.68]
[1766760580350,6.31945326,122.95,122.9,0.68]
[1766760580671,10.43767296,122.98,122.91,6.99945326]
[1766760580956,6.31945326,123.03,122.94,0.68]
[1766760581122,6.31945326,122.98,122.94,0.68]
[1766760581323,0.72,123.03,122.96,0.68]
[1766760581625,6.31945326,123.0,122.96,0.68]
[1766760581830,6.31945326,122.98,122.93,0.68]
[1766760582040,0.72,123.01,122.94,0.68]
[1766760582256,11.0167436,123.0,122.94,0.68]
[1766760582425,0.72,123.01,122.95,0.68]
[1766760582732,6.31945326,123.01,122.96,0.68]
[1766760582922,10.43767296,123.04,122.96,0.68]
[1766760583118,6.31945326,122.99,122.92,28.4738041]
[1766760583323,6.31945326,122.98,122.93,0.72]
[1766760583519,6.31945326,122.94,122.89,0.82]
[1766760583770,10.43767296,123.0,122.9,8.13623625]
[1766760583771,0.71,122.98,122.9,8.13623625]
[1766760583965,11.73918872,122.97,122.9,0.72]
[1766760584167,11.02918872,122.96,122.89,0.1]
[1766760584471,6.31945326,122.94,122.9,0.71]
[1766760584853,22.97101721,122.99,122.89,0.1]
[1766760584854,6.31945326,122.91,122.89,0.1]
[1766760585053,0.72,122.93,122.89,0.1]
[1766760585366,6.31945326,122.91,122.89,0.1]
[1766760585557,0.72,122.93,122.89,0.1]
[1766760585760,17.35958215,122.92,122.89,0.1]
[1766760586071,11.04012889,122.91,122.89,0.1]
[1766760586272,0.72,122.93,122.89,0.1]
[1766760586569,10.3691457,122.91,122.89,0.1]
[1766760586870,11.15767296,122.96,122.89,0.81]
[1766760587073,11.0557057,122.95,122.89,0.81]
[1766760587245,10.3357057,122.94,122.89,14.94]
[1766760587449,10.3357057,122.94,122.89,0.1]
[1766760587450,9.6157057,122.93,122.89,0.1]
[1766760587683,5.24385421,122.92,122.89,0.1]
[1766760587847,5.24385421,122.92,122.78,24.93276178]
[1766760587848,5.24385421,122.92,122.81,0.27]
[1766760587849,5.60563836,122.9,122.81,0.27]
[1766760588046,10.43767296,122.92,122.8,25.27767296]
[1766760588047,10.3691457,122.88,122.8,25.27767296]
[1766760588257,10.43767296,122.92,122.8,25.27767296]
[1766760588258,10.3691457,122.87,122.8,15.55]
[1766760588458,14.84,122.91,122.79,10.3691457]
[1766760588671,10.3691457,122.85,122.79,0.71]
[1766760588854,10.3691457,122.83,122.78,14.84]
[1766760589176,16.99023742,122.88,122.78,10.3691457]
[1766760589477,28.47430247,122.92,122.79,0.71]
[1766760589478,5.23476941,122.87,122.79,0.71]
[1766760589677,14.84,122.91,122.81,0.71]
[1766760589854,10.3691457,122.89,122.83,8.14133355]
[1766760590051,5.23695097,122.88,122.85,0.71]